fUSD/lending_fUSD_20250219
["ID","MTS","AMOUNT","RATE_DAILY","PERIOD"]
[353678162,1739987469527,-840.96,0.0001178,2]
[353678163,1739987469537,-1357.84,0.0001178,2]
[353678164,1739987469547,-500.0,0.0001178,2]
[353678165,1739987469556,-1600.63,0.0001178,2]
[353678166,1739987469565,-728.08,0.0001178,2]
[353678167,1739987469575,-1114.04,0.0001178,2]
[353678168,1739987469584,-892.41,0.0001178,2]
[353678169,1739987469594,-1054.42,0.0001178,2]
[353678170,1739987469604,-1568.95,0.0001178,2]
[353678171,1739987469613,-671.12,0.0001178,2]
[353678172,1739987469627,-782.68,0.0001178,2]
[353678173,1739987469637,-515.12,0.0001178,2]
[353678174,1739987469647,-914.52,0.0001178,2]
[353678175,1739987469657,-500.0,0.0001178,2]
[353678176,1739987469667,-1011.45,0.0001178,2]
[353678177,1739987469677,-1072.02,0.0001178,2]
[353678178,1739987469687,-1097.96,0.0001178,2]
[353678179,1739987469697,-4182.8,0.0001178,2]
[353678180,1739987469707,-500.0,0.0001178,2]
[353678181,1739987469717,-705.13,0.0001178,2]
[353678182,1739987469727,-1437.68,0.0001178,2]
[353678183,1739987469737,-795.0,0.0001178,2]
[353678184,1739987469747,-874.82,0.0001178,2]
[353678185,1739987469758,-1015.54,0.0001178,2]
[353678186,1739987469767,-644.23,0.0001178,2]
[353678187,1739987469777,-1039.88,0.0001178,2]
[353678188,1739987469787,-500.0,0.0001178,2]
[353678189,1739987469796,-614.0,0.0001178,2]
[353678190,1739987469806,-1336.31,0.0001178,2]
[353678191,1739987469816,-500.0,0.0001178,2]
[353678192,1739987469826,-866.14,0.0001178,2]
[353678193,1739987469836,-1003.06,0.0001178,2]
[353678194,1739987469845,-1114.28,0.0001178,2]
[353678195,1739987469855,-530.87,0.0001178,2]
[353678196,1739987469868,-500.0,0.0001178,2]
[353678197,1739987469881,-1022.6,0.0001178,2]
[353678198,1739987469891,-1345.04,0.0001178,2]
[353678199,1739987469902,-1740.48,0.0001178,2]
[353678200,1739987469912,-213.54829572,0.0001178,2]
[353678201,1739987469922,-500.0,0.0001178,2]
[353678202,1739987469931,-998.3,0.0001178,2]
[353678203,1739987469941,-500.0,0.0001178,2]
[353678204,1739987469951,-1414.34,0.0001178,2]
[353678205,1739987469960,-3066.13,0.0001178,2]
[353678206,1739987469970,-512.06,0.0001178,2]
[353678207,1739987469979,-593.78,0.0001178,2]
[353678208,1739987469988,-1153.26,0.0001178,2]
[353678209,1739987469998,-1550.39,0.0001178,2]
[353678210,1739987470007,-701.17,0.0001178,2]
[353678211,1739987470017,-500.0,0.0001178,2]
[353678212,1739987470027,-574.37,0.0001178,2]
[353678213,1739987470037,-150.0,0.0001179,2]
[353678214,1739987470046,-600.0,0.000118,4]
[353678215,1739987470056,-604.77294542,0.00011827,2]
[353678216,1739987470066,-603.2,0.00011861,2]
[353678217,1739987470075,-500.0,0.00011861,2]
[353678218,1739987470085,-500.0,0.00011861,2]
[353678219,1739987470095,-500.0,0.00011861,2]
[353678220,1739987470105,-575.06061785,0.00011861,2]
[353678221,1739987470118,-500.0,0.00011861,2]
[353678222,1739987470128,-888.52,0.00011861,2]
[353678223,1739987470138,-500.0,0.00011861,2]
[353678224,1739987470147,-500.0,0.00011861,2]
[353678225,1739987470156,-500.0,0.00011861,2]
[353678226,1739987470166,-500.0,0.00011861,2]
[353678227,1739987470176,-1381.16,0.00011861,2]
[353678228,1739987470186,-500.0,0.00011861,2]
[353678229,1739987470196,-500.0,0.00011861,2]
[353678230,1739987470206,-500.0,0.00011861,2]
[353678231,1739987470216,-500.0,0.00011861,2]
[353678232,1739987470227,-500.0,0.00011861,2]
[353678233,1739987470238,-500.0,0.00011861,2]
[353678234,1739987470248,-500.0,0.00011861,2]
[353678235,1739987470258,-500.0,0.00011861,2]
[353678236,1739987470269,-500.0,0.00011861,2]
[353678237,1739987470280,-500.0,0.00011861,2]
[353678238,1739987470292,-734.99,0.00011861,2]
[353678239,1739987470302,-500.0,0.00011861,2]
[353678240,1739987470312,-500.0,0.00011861,2]
[353678241,1739987470323,-813.48,0.00011861,2]
[353678242,1739987470332,-500.0,0.00011861,2]
[353678243,1739987470342,-500.0,0.00011861,2]
[353678244,1739987470352,-1086.23,0.00011861,2]
[353678245,1739987470363,-500.0,0.00011861,2]
[353678246,1739987470377,-500.0,0.00011861,2]
[353678247,1739987470387,-500.0,0.00011861,2]
[353678248,1739987470397,-500.0,0.00011861,2]
[353678249,1739987470408,-500.0,0.00011861,2]
[353678250,1739987470419,-500.0,0.00011861,2]
[353678251,1739987470431,-500.0,0.00011861,2]
[353678252,1739987470442,-728.33,0.00011861,2]
[353678253,1739987470452,-500.0,0.00011861,2]
[353678254,1739987470462,-535.77,0.00011861,2]
[353678255,1739987470472,-500.0,0.00011861,2]
[353678256,1739987470482,-500.0,0.00011861,2]
[353678257,1739987470491,-500.0,0.00011861,2]
[353678258,1739987470502,-500.0,0.00011861,2]
[353678259,1739987470511,-871.59,0.00011861,2]
[353678260,1739987470521,-500.0,0.00011861,2]
[353678261,1739987470532,-697.1,0.00011861,2]
[353678262,1739987470541,-609.82,0.00011861,2]
[353678263,1739987470551,-506.18139305,0.00011861,2]
[353678264,1739987470561,-500.0,0.00011861,2]
[353678265,1739987470571,-1715.25,0.00011861,2]
[353678266,1739987470581,-500.0,0.00011861,2]
[353678267,1739987470590,-500.0,0.00011861,2]
[353678268,1739987470600,-553.32,0.00011861,2]
[353678269,1739987470610,-2117.09,0.00011861,2]
[353678270,1739987470621,-500.0,0.00011861,2]
[353678271,1739987470630,-500.0,0.00011861,2]
[353678272,1739987470640,-500.0,0.00011861,2]
[353678273,1739987470649,-500.0,0.00011861,2]
[353678274,1739987470659,-1204.62,0.00011861,2]
[353678275,1739987470668,-500.0,0.00011861,2]
[353678276,1739987470679,-500.0,0.00011861,2]
[353678277,1739987470688,-500.0,0.00011861,2]
[353678278,1739987470698,-539.06122692,0.00011861,2]
[353678279,1739987470708,-500.0,0.00011861,2]
[353678280,1739987470717,-500.0,0.00011861,2]
[353678281,1739987470727,-7165.21,0.00011861,2]
[353678282,1739987470736,-500.0,0.00011861,2]
[353678283,1739987470747,-500.0,0.00011861,2]
[353678284,1739987470758,-500.0,0.00011861,2]
[353678285,1739987470768,-500.0,0.00011861,2]
[353678286,1739987470778,-500.0,0.00011861,2]
[353678287,1739987470787,-1550.13,0.00011861,2]
[353678288,1739987470796,-500.0,0.00011861,2]
[353678289,1739987470806,-500.0,0.00011861,2]
[353678290,1739987470816,-500.0,0.00011861,2]
[353678291,1739987470826,-620.03,0.00011861,2]
[353678292,1739987470836,-500.0,0.00011861,2]
[353678293,1739987470846,-500.0,0.00011861,2]
[353678294,1739987470856,-500.0,0.00011861,2]
[353678295,1739987470866,-500.0,0.00011861,2]
[353678296,1739987470875,-500.0,0.00011861,2]
[353678297,1739987470885,-503.57545854,0.00011861,2]
[353678298,1739987470894,-500.0,0.00011861,2]
[353678299,1739987470902,-575.7,0.00011861,2]
[353678300,1739987470911,-500.0,0.00011861,2]
[353678301,1739987470920,-500.0,0.00011861,2]
[353678302,1739987470930,-1988.7,0.00011861,2]
[353678303,1739987470939,-224.20108924,0.00011861,2]
[353678304,1739987470949,-500.0,0.00011861,2]
[353678305,1739987470959,-500.0,0.00011861,2]
[353678306,1739987470969,-498.10379725,0.00011861,2]
[353678307,1739987470978,-500.0,0.00011861,2]
[353678308,1739987470988,-500.0,0.00011861,2]
[353678309,1739987470997,-500.0,0.00011861,2]
[353678310,1739987471007,-500.0,0.00011861,2]
[353678311,1739987471017,-500.0,0.00011861,2]
[353678312,1739987471027,-500.0,0.00011861,2]
[353678313,1739987471036,-500.0,0.00011861,2]
[353678314,1739987471046,-500.0,0.00011861,2]
[353678315,1739987471057,-1259.65,0.00011861,2]
[353678316,1739987471066,-500.0,0.00011861,2]
[353678317,1739987471075,-500.0,0.00011861,2]
[353678318,1739987471085,-500.0,0.00011861,2]
[353678319,1739987471094,-500.0,0.00011861,2]
[353678320,1739987471104,-500.0,0.00011861,2]
[353678321,1739987471113,-500.0,0.00011861,2]
[353678322,1739987471123,-500.0,0.00011861,2]
[353678323,1739987471133,-500.0,0.00011861,2]
[353678324,1739987471144,-500.0,0.00011861,2]
[353678325,1739987471154,-500.0,0.00011861,2]
[353678326,1739987471164,-698.22,0.00011861,2]
[353678327,1739987471175,-500.0,0.00011861,2]
[353678328,1739987471185,-500.0,0.00011861,2]
[353678329,1739987471195,-500.0,0.00011861,2]
[353678330,1739987471204,-500.0,0.00011861,2]
[353678331,1739987471214,-500.0,0.00011861,2]
[353678332,1739987471226,-500.0,0.00011861,2]
[353678333,1739987471236,-500.0,0.00011861,2]
[353678334,1739987471247,-500.0,0.00011861,2]
[353678335,1739987471257,-503.08,0.00011862,2]
[353678336,1739987471267,-932.0,0.00011862,2]
[353678337,1739987471280,-1035.21,0.00011862,2]
[353678338,1739987471291,-753.25,0.00011862,2]
[353678339,1739987471302,-1074.53,0.00011862,2]
[353678340,1739987471312,-1188.97,0.00011862,2]
[353678341,1739987471323,-500.0,0.00011862,2]
[353678342,1739987471334,-744.25,0.00011862,2]
[353678343,1739987471344,-990.17,0.00011862,2]
[353678344,1739987471355,-1736.87,0.00011862,2]
[353678345,1739987471366,-2335.41,0.00011862,2]
[353678346,1739987471378,-1527.63,0.00011862,2]
[353678347,1739987471388,-1000.0,0.00011862,2]
[353678348,1739987471399,-1821.09,0.00011862,2]
[353678349,1739987471409,-1496.47,0.00011862,2]
[353678350,1739987471419,-1091.01,0.00011862,2]
[353678351,1739987471428,-2442.27,0.00011862,2]
[353678352,1739987471438,-926.03,0.00011862,2]
[353678353,1739987471448,-1071.28,0.00011862,2]
[353678354,1739987471458,-1230.45,0.00011862,2]
[353678355,1739987471468,-788.39,0.00011862,2]
[353678356,1739987471479,-1012.93,0.00011862,2]
[353678357,1739987471489,-947.02,0.00011862,2]
[353678358,1739987471499,-1322.03,0.00011862,2]
[353678359,1739987471508,-1118.2,0.00011862,2]
[353678360,1739987471518,-1110.66,0.00011862,2]
[353678361,1739987471527,-500.0,0.00011862,2]
[353678362,1739987471537,-1462.21,0.00011862,2]
[353678363,1739987471548,-524.06690576,0.00011862,2]
[353678364,1739987471558,-694.37,0.00011862,2]
[353678365,1739987471568,-928.72,0.00011862,2]
[353678366,1739987471578,-500.0,0.00011862,2]
[353678367,1739987471588,-1600.63,0.00011862,2]
[353678368,1739987471597,-1114.04,0.00011862,2]
[353678369,1739987471607,-515.12,0.00011862,2]
[353678370,1739987471616,-1097.96,0.00011862,2]
[353678371,1739987471626,-4182.8,0.00011862,2]
[353678372,1739987471636,-874.82,0.00011862,2]
[353678373,1739987471646,-500.0,0.00011862,2]
[353678374,1739987471657,-614.0,0.00011862,2]
[353678375,1739987471667,-1336.31,0.00011862,2]
[353678376,1739987471678,-1114.28,0.00011862,2]
[353678377,1739987471688,-644.90383833,0.00011862,2]
[353678378,1739987471698,-1022.6,0.00011862,2]
[353678379,1739987471708,-1345.04,0.00011862,2]
[353678380,1739987471718,-500.0,0.00011862,2]
[353678381,1739987471728,-1414.34,0.00011862,2]
[353678382,1739987471738,-593.78,0.00011862,2]
[353678383,1739987471747,-1153.26,0.00011862,2]
[353678384,1739987471757,-701.17,0.00011862,2]
[353678385,1739987471768,-500.0,0.00011863,2]
[353678386,1739987471778,-500.0,0.00011863,2]
[353678387,1739987471788,-500.0,0.00011863,2]
[353678388,1739987471798,-500.0,0.00011863,2]
[353678389,1739987471808,-813.48,0.00011863,2]
[353678390,1739987471819,-500.0,0.00011863,2]
[353678391,1739987471828,-722.46,0.00011863,2]
[353678392,1739987471839,-1116.18,0.00011863,2]
[353678393,1739987471849,-500.0,0.00011863,2]
[353678394,1739987471860,-1001.38,0.00011863,2]
[353678395,1739987471871,-772.23,0.00011863,2]
[353678396,1739987471881,-1129.31,0.00011863,2]
[353678397,1739987471891,-894.25,0.00011863,2]
[353678398,1739987471901,-500.0,0.00011863,2]
[353678399,1739987471912,-1066.3,0.00011863,2]
[353678400,1739987471922,-500.0,0.00011863,2]
[353678401,1739987471932,-1207.63,0.00011863,2]
[353678402,1739987471941,-500.0,0.00011863,2]
[353678403,1739987471952,-523.8,0.00011863,2]
[353678404,1739987471963,-1475.98,0.00011863,2]
[353678405,1739987471974,-707.46,0.00011863,2]
[353678406,1739987471984,-973.42,0.00011863,2]
[353678407,1739987471993,-1708.57,0.00011863,2]
[353678408,1739987472002,-758.41,0.00011863,2]
[353678409,1739987472012,-1055.55,0.00011863,2]
[353678410,1739987472022,-943.78,0.00011863,2]
[353678411,1739987472032,-500.0,0.00011863,2]
[353678412,1739987472042,-793.53,0.00011863,2]
[353678413,1739987472053,-829.08,0.00011863,2]
[353678414,1739987472063,-500.0,0.00011863,2]
[353678415,1739987472073,-628.54,0.00011863,2]
[353678416,1739987472083,-673.29,0.00011863,2]
[353678417,1739987472093,-585.45,0.00011863,2]
[353678418,1739987472104,-569.52,0.00011863,2]
[353678419,1739987472116,-551.33,0.00011863,2]
[353678420,1739987472127,-1188.83,0.00011863,2]
[353678421,1739987472137,-788.62,0.00011863,2]
[353678422,1739987472147,-1971.73,0.00011863,2]
[353678423,1739987472159,-672.32,0.00011863,2]
[353678424,1739987472169,-500.0,0.00011863,2]
[353678425,1739987472178,-808.29,0.00011863,2]
[353678426,1739987472188,-500.0,0.00011863,2]
[353678427,1739987472198,-720.08,0.00011863,2]
[353678428,1739987472208,-566.48,0.00011863,2]
[353678429,1739987472217,-840.91,0.00011863,2]
[353678430,1739987472226,-517.52,0.00011863,2]
[353678431,1739987472236,-662.15,0.00011863,2]
[353678432,1739987472246,-1035.82,0.00011863,2]
[353678433,1739987472257,-1483.43,0.00011863,2]
[353678434,1739987472267,-1154.98,0.00011863,2]
[353678435,1739987472278,-811.37,0.00011863,2]
[353678436,1739987472290,-896.95,0.00011863,2]
[353678437,1739987472301,-954.7,0.00011863,2]
[353678438,1739987472311,-1939.26,0.00011863,2]
[353678439,1739987472323,-1057.93,0.00011863,2]
[353678440,1739987472334,-1081.88,0.00011863,2]
[353678441,1739987472345,-893.96,0.00011863,2]
[353678442,1739987472355,-1776.36,0.00011863,2]
[353678443,1739987472367,-1231.15,0.00011863,2]
[353678444,1739987472377,-1082.49,0.00011863,2]
[353678445,1739987472388,-500.0,0.00011863,2]
[353678446,1739987472397,-1842.35,0.00011863,2]
[353678447,1739987472406,-500.0,0.00011863,2]
[353678448,1739987472417,-711.42,0.00011863,2]
[353678449,1739987472427,-881.03,0.00011863,2]
[353678450,1739987472437,-819.54,0.00011863,2]
[353678451,1739987472447,-1127.42,0.00011863,2]
[353678452,1739987472458,-744.32,0.00011863,2]
[353678453,1739987472468,-904.15,0.00011863,2]
[353678454,1739987472478,-500.0,0.00011863,2]
[353678455,1739987472488,-500.0,0.00011863,2]
[353678456,1739987472498,-1246.08,0.00011863,2]
[353678457,1739987472508,-1227.92,0.00011863,2]
[353678458,1739987472518,-500.0,0.00011863,2]
[353678459,1739987472529,-664.94,0.00011863,2]
[353678460,1739987472539,-1901.67,0.00011863,2]
[353678461,1739987472550,-500.0,0.00011863,2]
[353678462,1739987472560,-500.0,0.00011863,2]
[353678463,1739987472571,-1108.43,0.00011863,2]
[353678464,1739987472581,-1901.78,0.00011863,2]
[353678465,1739987472591,-500.0,0.00011863,2]
[353678466,1739987472600,-500.0,0.00011863,2]
[353678467,1739987472610,-1290.72,0.00011863,2]
[353678468,1739987472622,-2211.03,0.00011863,2]
[353678469,1739987472632,-500.0,0.00011863,2]
[353678470,1739987472641,-812.42,0.00011863,2]
[353678471,1739987472651,-500.0,0.00011863,2]
[353678472,1739987472662,-4591.13,0.00011863,2]
[353678473,1739987472672,-500.0,0.00011863,2]
[353678474,1739987472682,-1566.76,0.00011863,2]
[353678475,1739987472691,-955.62,0.00011863,2]
[353678476,1739987472701,-500.0,0.00011863,2]
[353678477,1739987472711,-500.0,0.00011863,2]
[353678478,1739987472721,-1307.0,0.00011863,2]
[353678479,1739987472731,-500.0,0.00011863,2]
[353678480,1739987472742,-1646.83,0.00011863,2]
[353678481,1739987472752,-500.0,0.00011863,2]
[353678482,1739987472762,-882.64,0.00011863,2]
[353678483,1739987472772,-513.95,0.00011863,2]
[353678484,1739987472782,-999.95,0.00011863,2]
[353678485,1739987472792,-1684.83,0.00011863,2]
[353678486,1739987472802,-1014.56,0.00011863,2]
[353678487,1739987472812,-500.0,0.00011863,2]
[353678488,1739987472822,-500.0,0.00011863,2]
[353678489,1739987472833,-737.79,0.00011863,2]
[353678490,1739987472843,-500.0,0.00011863,2]
[353678491,1739987472853,-1140.37,0.00011863,2]
[353678492,1739987472863,-1541.55,0.00011863,2]
[353678493,1739987472874,-993.33,0.00011863,2]
[353678494,1739987472885,-500.0,0.00011863,2]
[353678495,1739987472895,-752.42,0.00011863,2]
[353678496,1739987472906,-500.0,0.00011863,2]
[353678497,1739987472916,-992.83,0.00011863,2]
[353678498,1739987472926,-1423.73,0.00011863,2]
[353678499,1739987472936,-1072.75,0.00011863,2]
[353678500,1739987472946,-991.44,0.00011863,2]
[353678501,1739987472956,-520.20440192,0.00011863,2]
[353678502,1739987472966,-734.87,0.00011863,2]
[353678503,1739987472976,-506.11,0.00011863,2]
[353678504,1739987472986,-660.15,0.00011863,2]
[353678505,1739987472996,-500.0,0.00011863,2]
[353678506,1739987473006,-1154.52,0.00011863,2]
[353678507,1739987473016,-500.0,0.00011863,2]
[353678508,1739987473026,-705.06,0.00011863,2]
[353678509,1739987473034,-840.96,0.00011863,2]
[353678510,1739987473043,-1357.84,0.00011863,2]
[353678511,1739987473053,-728.08,0.00011863,2]
[353678512,1739987473063,-892.41,0.00011863,2]
[353678513,1739987473073,-1054.42,0.00011863,2]
[353678514,1739987473083,-1568.95,0.00011863,2]
[353678515,1739987473093,-671.12,0.00011863,2]
[353678516,1739987473103,-782.68,0.00011863,2]
[353678517,1739987473113,-914.52,0.00011863,2]
[353678518,1739987473124,-500.0,0.00011863,2]
[353678519,1739987473133,-1011.45,0.00011863,2]
[353678520,1739987473143,-1072.02,0.00011863,2]
[353678521,1739987473153,-605.02919925,0.00011863,2]
[353678522,1739987473163,-705.13,0.00011863,2]
[353678523,1739987473173,-1437.68,0.00011863,2]
[353678524,1739987473182,-795.0,0.00011863,2]
[353678525,1739987473192,-1015.54,0.00011863,2]
[353678526,1739987473202,-644.23,0.00011863,2]
[353678527,1739987473212,-1039.88,0.00011863,2]
[353678528,1739987473224,-500.0,0.00011863,2]
[353678529,1739987473234,-866.14,0.00011863,2]
[353678530,1739987473244,-1003.06,0.00011863,2]
[353678531,1739987473254,-530.87,0.00011863,2]
[353678532,1739987473265,-1740.48,0.00011863,2]
[353678533,1739987473276,-998.3,0.00011863,2]
[353678534,1739987473290,-500.0,0.00011863,2]
[353678535,1739987473300,-3066.13,0.00011863,2]
[353678536,1739987473310,-512.06,0.00011863,2]
[353678537,1739987473322,-1550.39,0.00011863,2]
[353678538,1739987473333,-500.0,0.00011863,2]
[353678539,1739987473343,-574.37,0.00011863,2]
[353678540,1739987473354,-500.0,0.0001188,2]
[353678541,1739987473367,-150.0,0.0001188,2]
[353678542,1739987473378,-900.0,0.000119,4]
[353678543,1739987473388,-603.2,0.00011943,2]
[353678544,1739987473398,-500.0,0.00011943,2]
[353678545,1739987473407,-500.0,0.00011943,2]
[353678546,1739987473418,-500.0,0.00011943,2]
[353678547,1739987473428,-500.0,0.00011943,2]
[353678548,1739987473438,-888.52,0.00011943,2]
[353678549,1739987473448,-500.0,0.00011943,2]
[353678550,1739987473459,-500.0,0.00011943,2]
[353678551,1739987473469,-500.0,0.00011943,2]
[353678552,1739987473479,-500.0,0.00011943,2]
[353678553,1739987473490,-1381.16,0.00011943,2]
[353678554,1739987473502,-500.0,0.00011943,2]
[353678555,1739987473513,-500.0,0.00011943,2]
[353678556,1739987473845,-500.0,0.00011943,2]
[353678557,1739987473856,-500.0,0.00011943,2]
[353678558,1739987473867,-500.0,0.00011943,2]
[353678559,1739987473877,-500.0,0.00011943,2]
[353678560,1739987473887,-500.0,0.00011943,2]
[353678561,1739987473898,-500.0,0.00011943,2]
[353678562,1739987473909,-500.0,0.00011943,2]
[353678563,1739987473920,-500.0,0.00011943,2]
[353678564,1739987473931,-734.99,0.00011943,2]
[353678565,1739987473941,-500.0,0.00011943,2]
[353678566,1739987473951,-500.0,0.00011943,2]
[353678567,1739987473960,-813.48,0.00011943,2]
[353678568,1739987473971,-500.0,0.00011943,2]
[353678569,1739987473981,-539.74466499,0.00011943,2]
[353678570,1739987473991,-1086.23,0.00011943,2]
[353678571,1739987474001,-500.0,0.00011943,2]
[353678572,1739987474011,-500.0,0.00011943,2]
[353678573,1739987474022,-520.9,0.00011943,2]
[353678574,1739987474033,-500.0,0.00011943,2]
[353678575,1739987474046,-582.76481058,0.00011943,2]
[353678576,1739987474058,-500.0,0.00011943,2]
[353678577,1739987474069,-500.0,0.00011943,2]
[353678578,1739987474080,-728.33,0.00011943,2]
[353678579,1739987474091,-500.0,0.00011943,2]
[353678580,1739987474103,-535.77,0.00011943,2]
[353678581,1739987474113,-500.0,0.00011943,2]
[353678582,1739987474127,-500.0,0.00011943,2]
[353678583,1739987474139,-500.0,0.00011943,2]
[353678584,1739987474151,-500.0,0.00011943,2]
[353678585,1739987474162,-871.59,0.00011943,2]
[353678586,1739987474173,-194.81571787,0.00011943,2]
[353678587,1739987474184,-697.1,0.00011943,2]
[353678588,1739987474196,-500.0,0.00011943,2]
[353678589,1739987474207,-1715.25,0.00011943,2]
[353678590,1739987474219,-500.0,0.00011943,2]
[353678591,1739987474230,-500.0,0.00011943,2]
[353678592,1739987474241,-553.32,0.00011943,2]
[353678593,1739987474252,-2117.09,0.00011943,2]
[353678594,1739987474262,-500.0,0.00011943,2]
[353678595,1739987474273,-500.0,0.00011943,2]
[353678596,1739987474287,-500.0,0.00011943,2]
[353678597,1739987474298,-1204.62,0.00011943,2]
[353678598,1739987474309,-500.0,0.00011943,2]
[353678599,1739987474319,-500.0,0.00011943,2]
[353678600,1739987474330,-543.61120191,0.00011943,2]
[353678601,1739987474341,-500.0,0.00011943,2]
[353678602,1739987474353,-7165.21,0.00011943,2]
[353678603,1739987474365,-500.0,0.00011943,2]
[353678604,1739987474379,-500.0,0.00011943,2]
[353678605,1739987474390,-500.0,0.00011943,2]
[353678606,1739987474399,-500.0,0.00011943,2]
[353678607,1739987474409,-500.0,0.00011943,2]
[353678608,1739987474419,-1550.13,0.00011943,2]
[353678609,1739987474430,-500.0,0.00011943,2]
[353678610,1739987474439,-500.0,0.00011943,2]
[353678611,1739987474455,-500.0,0.00011943,2]
[353678612,1739987474466,-620.03,0.00011943,2]
[353678613,1739987474478,-500.0,0.00011943,2]
[353678614,1739987474490,-500.0,0.00011943,2]
[353678615,1739987474502,-500.0,0.00011943,2]
[353678616,1739987474513,-207.45,0.00011943,2]
[353678617,1739987474524,-500.0,0.00011943,2]
[353678618,1739987474534,-500.0,0.00011943,2]
[353678619,1739987474544,-575.7,0.00011943,2]
[353678620,1739987474556,-500.0,0.00011943,2]
[353678621,1739987474566,-500.0,0.00011943,2]
[353678622,1739987474577,-1988.7,0.00011943,2]
[353678623,1739987474588,-500.0,0.00011943,2]
[353678624,1739987474600,-500.0,0.00011943,2]
[353678625,1739987474611,-500.0,0.00011943,2]
[353678626,1739987474623,-500.0,0.00011943,2]
[353678627,1739987474635,-500.0,0.00011943,2]
[353678628,1739987474646,-500.0,0.00011943,2]
[353678629,1739987474658,-500.0,0.00011943,2]
[353678630,1739987474670,-500.0,0.00011943,2]
[353678631,1739987474681,-500.0,0.00011943,2]
[353678632,1739987474692,-500.0,0.00011943,2]
[353678633,1739987474703,-1259.65,0.00011943,2]
[353678634,1739987474715,-500.0,0.00011943,2]
[353678635,1739987474726,-500.0,0.00011943,2]
[353678636,1739987474736,-500.0,0.00011943,2]
[353678637,1739987474748,-500.0,0.00011943,2]
[353678638,1739987474758,-500.0,0.00011943,2]
[353678639,1739987474769,-482.01107199,0.00011943,2]
[353678640,1739987474780,-500.0,0.00011943,2]
[353678641,1739987474791,-500.0,0.00011943,2]
[353678642,1739987474802,-500.0,0.00011943,2]
[353678643,1739987474813,-500.0,0.00011943,2]
[353678644,1739987474825,-698.22,0.00011943,2]
[353678645,1739987474835,-500.0,0.00011943,2]
[353678646,1739987474846,-500.0,0.00011943,2]
[353678647,1739987474856,-500.0,0.00011943,2]
[353678648,1739987474866,-500.0,0.00011943,2]
[353678649,1739987474879,-336.55,0.00011943,2]
[353678650,1739987474890,-500.50418331,0.00011943,2]
[353678651,1739987474901,-500.0,0.00011943,2]
[353678652,1739987474912,-503.08,0.00011944,2]
[353678653,1739987474923,-932.0,0.00011944,2]
[353678654,1739987474933,-1035.21,0.00011944,2]
[353678655,1739987474943,-753.25,0.00011944,2]
[353678656,1739987474953,-1074.53,0.00011944,2]
[353678657,1739987474963,-1188.97,0.00011944,2]
[353678658,1739987474972,-500.0,0.00011944,2]
[353678659,1739987474983,-744.25,0.00011944,2]
[353678660,1739987474994,-990.17,0.00011944,2]
[353678661,1739987475005,-1736.87,0.00011944,2]